bitfinex/quotes_SOLUSD_20250821
["timestamp","ask_amount","ask_price","bid_price","bid_amount"]
[1755752364388,39.69844374,188.11,188.1,0.03]
[1755752366180,37.32,188.11,188.1,0.03]
[1755752366366,37.32,188.11,188.1,0.72]
[1755752366798,2.37844374,188.13,188.1,0.72]
[1755752366971,37.32,188.12,188.1,0.72]
[1755752368977,37.32,188.12,188.1,0.03]
[1755752370200,39.69844374,188.12,188.1,0.03]
[1755752370510,2.37844374,188.11,188.1,0.03]
[1755752370672,38.02,188.12,188.1,0.03]
[1755752370998,40.39844374,188.12,188.1,0.03]
[1755752371310,38.02,188.12,188.1,0.03]
[1755752371515,3.07844374,188.11,188.1,0.03]
[1755752371976,2.37844374,188.11,188.1,0.03]
[1755752372311,38.02,188.12,188.1,0.03]
[1755752372515,2.37844374,188.11,188.1,0.03]
[1755752372675,3.07844374,188.11,188.1,0.03]
[1755752374002,2.37844374,188.11,188.1,0.03]
[1755752374180,39.69844374,188.12,188.1,0.03]
[1755752374890,40.39844374,188.12,188.1,0.03]
[1755752376304,3.07844374,188.11,188.06,4.45821445]
[1755752376707,37.32,188.1,188.06,4.45821445]
[1755752377085,38.02,188.1,188.05,31.3562462]
[1755752377290,38.02,188.1,188.06,2.37844374]
[1755752379689,37.32,188.1,188.06,2.37844374]
[1755752379892,38.02,188.1,188.06,2.37844374]
[1755752381511,0.7,188.09,188.06,2.37844374]
[1755752382298,37.32,188.1,188.06,2.37844374]
[1755752382500,38.02,188.1,188.06,2.55844374]
[1755752383088,38.02,188.1,188.06,2.37844374]
[1755752383784,38.02,188.1,188.05,47.5213272]
[1755752383984,0.7,188.09,188.06,2.37844374]
[1755752387398,0.7,188.09,188.05,26.03]
[1755752387620,0.7,188.08,188.05,28.40844374]
[1755752387812,39.69844374,188.1,188.05,28.40844374]
[1755752388006,0.7,188.09,188.06,2.37844374]
[1755752389428,37.32,188.1,188.06,2.37844374]
[1755752389596,37.32,188.1,188.07,2.37844374]
[1755752390233,38.02,188.1,188.07,2.37844374]
[1755752390835,38.02,188.1,188.06,2.37844374]
[1755752391023,0.06,188.09,188.06,2.37844374]
[1755752391332,0.76,188.09,188.06,2.37844374]
[1755752393614,0.76,188.09,188.05,26.03]
[1755752393942,0.76,188.09,188.06,2.37844374]
[1755752397141,0.76,188.09,188.05,26.03]
[1755752397342,0.76,188.09,188.06,2.37844374]
[1755752397830,0.76,188.09,188.07,2.37844374]
[1755752397831,0.06,188.09,188.07,2.37844374]
[1755752400117,0.06,188.09,188.08,28.37844374]
[1755752400319,0.06,188.13,188.08,81.21259256]
[1755752400541,0.06,188.13,188.12,28.66276688]
[1755752400762,0.06,188.13,188.12,71.5188176]
[1755752401056,0.06,188.2,188.12,76.9545735]
[1755752401277,3.07844374,188.19,188.14,2.37844374]
[1755752401416,2.37844374,188.18,188.14,26.0]
[1755752401751,2.43844374,188.2,188.15,2.37844374]
[1755752401956,0.7,188.18,188.15,2.37844374]
[1755752402734,0.76,188.2,188.16,2.37844374]
[1755752403242,0.7,188.19,188.16,2.37844374]
[1755752403452,2.43844374,188.2,188.15,2.37844374]
[1755752403656,0.7,188.19,188.16,2.37844374]
[1755752403845,0.7,188.19,188.14,26.0]
[1755752404167,0.7,188.18,188.16,18.35501074]
[1755752404366,0.7,188.18,188.16,15.976567]
[1755752404525,0.7,188.17,188.16,15.976567]
[1755752404731,3.07844374,188.17,188.16,15.976567]
[1755752405094,3.07844374,188.17,187.86,10.0]
[1755752405095,26.0,188.05,187.86,10.0]
[1755752405253,25.48781271,188.03,188.01,9.513775]
[1755752405453,2.37844374,188.03,187.91,2.37844374]
[1755752405679,13.59559401,188.01,187.95,2.37844374]
[1755752405855,0.7,188.08,188.0,2.37844374]
[1755752406060,0.7,188.12,188.07,2.37844374]
[1755752406270,18.23071793,188.21,188.05,29.71668642]
[1755752406271,0.7,188.11,188.05,29.71668642]
[1755752406481,3.71668642,188.1,188.05,26.0]
[1755752406687,3.71668642,188.1,188.01,7.03025158]
[1755752406688,3.71668642,188.07,188.01,3.71668642]
[1755752406854,3.71668642,188.05,188.02,26.0]
[1755752407057,4.41668642,188.07,188.01,29.71668642]
[1755752407254,0.7,188.09,188.03,3.71668642]
[1755752407481,3.71668642,188.06,188.01,26.0]
[1755752407686,4.41668642,188.05,188.01,26.0]
[1755752407887,0.7,188.05,188.01,26.0]
[1755752408389,0.7,188.04,188.01,26.0]
[1755752408577,0.7,188.04,188.0,0.03]
[1755752408804,3.71668642,188.05,188.0,0.03]
[1755752409086,0.7,188.04,188.0,0.03]
[1755752409486,3.71668642,188.05,188.0,0.03]
[1755752409987,4.41668642,188.05,188.0,0.03]
[1755752411788,0.7,188.04,188.0,0.03]
[1755752412185,13.59559401,188.09,188.0,4.03100956]
[1755752412380,37.86,188.08,188.04,3.71668642]
[1755752412890,42.27668642,188.08,188.03,3.71668642]
[1755752413088,3.71668642,188.06,188.01,26.0]
[1755752413305,4.41668642,188.05,188.01,26.0]
[1755752413464,0.7,188.04,188.02,26.0]
[1755752415492,38.56,188.06,188.0,3.74668642]
[1755752415787,38.56,188.06,188.01,3.71668642]
[1755752415982,37.86,188.07,188.03,29.71668642]
[1755752416305,37.86,188.07,188.04,3.71668642]
[1755752417088,37.86,188.07,188.03,20.41347042]
[1755752417380,4.41668642,188.07,188.03,15.986784]
[1755752417684,0.7,188.06,188.03,15.986784]
[1755752417892,0.7,188.06,188.02,3.71668642]
[1755752418864,0.7,188.06,188.01,16.697636]
[1755752419491,0.7,188.06,188.02,3.71668642]
[1755752419880,0.7,188.06,188.01,16.697636]
[1755752420084,0.7,188.06,188.02,3.71668642]
[1755752420492,0.7,188.06,188.04,26.0]
[1755752420901,0.7,188.05,188.04,26.0]
[1755752421200,4.41668642,188.05,188.0,0.03]
[1755752421404,3.71668642,188.04,188.0,0.03]
[1755752421700,3.71668642,188.02,188.0,0.03]
[1755752422000,3.71668642,188.02,188.0,26.03]
[1755752422298,0.7,188.01,188.0,0.03]
[1755752422480,4.41668642,188.01,188.0,26.03]
[1755752422803,4.41668642,188.01,188.0,0.03]
[1755752424996,4.37668642,188.01,188.0,0.03]
[1755752425197,0.66,188.01,188.0,0.03]
[1755752425499,42.21668642,188.01,188.0,0.03]
[1755752426399,42.23668642,188.01,188.0,0.03]
[1755752427183,3.71668642,188.02,188.0,0.03]
[1755752427387,37.86,188.01,188.0,0.03]
[1755752428513,37.84,188.01,188.0,0.03]
[1755752428893,3.71668642,188.03,188.0,0.03]
[1755752429096,37.84,188.02,188.0,0.03]
[1755752429308,37.84,188.02,188.0,0.75]
[1755752429487,4.37668642,188.01,188.0,0.03]
[1755752429693,0.66,188.01,188.0,0.03]
[1755752429997,37.84,188.02,188.0,0.03]
[1755752430203,0.66,188.01,188.0,0.03]
[1755752431000,4.37668642,188.01,188.0,0.03]
[1755752431413,17.97228043,188.01,188.0,0.03]
[1755752433837,21.68896685,188.01,188.0,0.03]
[1755752437421,17.97228043,188.01,188.0,0.03]
[1755752437606,26.28432314,188.05,188.0,0.03]
[1755752437607,0.66,188.03,188.0,0.03]
[1755752437933,37.82,188.02,188.0,0.03]
[1755752438134,41.53668642,188.02,188.0,0.03]
[1755752439239,37.82,188.02,188.0,0.03]
[1755752439906,37.82,188.01,188.0,0.03]
[1755752441037,37.8,188.03,188.0,4.46668642]
[1755752441227,37.8,188.03,188.01,4.43668642]
[1755752441742,37.8,188.03,188.01,0.72]
[1755752442238,37.8,188.03,188.0,3.74668642]
[1755752442427,37.8,188.03,188.0,4.46668642]
[1755752443531,38.46,188.03,188.0,0.03]
[1755752443946,0.66,188.02,188.0,0.03]
[1755752444449,42.17668642,188.03,188.0,0.03]
[1755752445342,13.65559401,188.07,188.0,0.03]
[1755752445343,4.37668642,188.05,188.0,0.03]
[1755752445544,37.8,188.04,188.01,0.72]
[1755752445725,37.78,188.03,188.01,0.72]
[1755752445918,37.78,188.03,188.0,4.46668642]
[1755752446154,3.71668642,188.05,188.0,4.46668642]
[1755752446456,37.78,188.04,188.01,4.43668642]
[1755752447752,37.78,188.04,188.01,0.72]
[1755752447921,37.78,188.03,188.01,0.72]
[1755752449030,37.78,188.03,188.01,3.71668642]
[1755752449236,37.78,188.03,188.01,4.43668642]
[1755752449836,37.78,188.03,188.0,26.03]
[1755752450036,37.78,188.03,188.0,29.74668642]
[1755752450560,37.78,188.03,188.0,30.46668642]
[1755752450731,0.66,188.02,188.0,26.03]
[1755752450938,0.66,188.02,188.0,0.03]
[1755752452341,7.43337284,188.01,188.0,0.03]
[1755752452541,6.11024824,188.01,188.0,0.03]
[1755752452748,4.37668642,188.01,188.0,0.03]
[1755752453071,42.23668642,188.01,188.0,0.03]
[1755752453880,37.86,188.01,188.0,0.03]
[1755752454275,41.57668642,188.01,188.0,0.03]
[1755752454448,42.25668642,188.01,188.0,0.03]
[1755752455577,0.68,188.06,188.0,4.45668642]
[1755752455745,37.86,188.05,188.01,3.71668642]
[1755752456079,38.54,188.05,188.01,3.71668642]
[1755752456779,0.68,188.04,188.0,3.74668642]
[1755752456951,0.68,188.03,188.0,3.74668642]
[1755752457588,0.06,188.04,188.0,0.03]
[1755752457764,0.06,188.04,188.0,3.74668642]
[1755752457963,0.06,188.04,188.0,4.45668642]
[1755752459480,0.74,188.04,188.0,4.45668642]
[1755752460413,0.06,188.04,188.01,4.42668642]
[1755752460695,0.06,188.04,188.02,4.42668642]
[1755752461060,0.06,188.04,188.02,0.71]
[1755752461270,0.06,188.04,188.01,3.71668642]
[1755752461271,4.39668642,188.03,188.0,26.03]
[1755752461583,3.71668642,188.01,188.0,0.03]
[1755752461766,4.39668642,188.01,188.0,0.03]
[1755752462359,0.68,188.01,188.0,0.03]
[1755752462589,37.86,188.02,188.0,0.03]
[1755752463161,42.25668642,188.02,188.0,0.03]
[1755752463485,38.54,188.02,188.0,0.03]
[1755752463670,37.86,188.02,188.0,0.03]
[1755752464276,38.54,188.02,188.0,0.03]
[1755752464484,37.86,188.02,188.0,26.03]
[1755752464679,37.86,188.02,188.0,0.03]
[1755752465571,42.35668642,188.04,188.0,0.03]
[1755752465873,0.68,188.02,188.0,0.03]
[1755752466987,0.06,188.04,188.01,30.42668642]
[1755752467199,0.06,188.04,188.03,29.71668642]
[1755752467373,0.06,188.04,188.03,30.71100956]
[1755752468272,0.06,188.04,188.03,44.30660357]
[1755752468605,0.06,188.04,188.03,49.62490384]
[1755752469405,0.06,188.04,188.03,4.71100956]
[1755752469576,0.06,188.04,188.03,30.71100956]
[1755752469780,0.06,188.04,188.03,26.99432314]
[1755752469981,0.06,188.04,188.03,30.71100956]
[1755752470812,0.06,188.04,188.03,36.02930983]
[1755752472188,0.06,188.04,188.03,49.62490384]
[1755752473310,0.06,188.04,188.03,129.42490384]
[1755752473816,0.06,188.04,188.03,167.32490384]
[1755752473976,0.06,188.04,188.03,162.00660357]
[1755752474673,0.06,188.04,188.03,167.32490384]
[1755752476803,0.06,188.04,188.03,162.00660357]
[1755752477010,0.06,188.04,188.03,109.80100956]
[1755752477309,0.06,188.04,188.03,109.51668642]
[1755752477516,0.74,188.04,188.03,109.51668642]
[1755752477709,0.74,188.04,188.03,109.80100956]
[1755752477921,0.06,188.04,188.03,109.80100956]
[1755752478817,0.06,188.04,188.03,110.51100956]
[1755752479184,0.06,188.04,188.03,109.80100956]
[1755752480594,0.74,188.04,188.03,109.80100956]
[1755752480891,4.45668642,188.04,188.0,0.03]
[1755752481112,4.45668642,188.04,188.0,26.03]
[1755752481429,0.68,188.03,188.0,29.74668642]
[1755752481592,0.68,188.02,188.0,3.74668642]
[1755752481791,0.68,188.01,188.0,3.74668642]
[1755752481986,0.68,188.01,188.0,29.74668642]
[1755752482696,0.68,188.01,188.0,0.03]
[1755752483324,4.39668642,188.01,188.0,0.03]
[1755752483494,4.39668642,188.01,187.98,0.03]
[1755752483698,0.69,188.0,187.98,0.03]
[1755752484496,0.69,187.99,187.98,0.03]
[1755752484816,4.40668642,187.99,187.96,0.03]
[1755752485018,3.71668642,187.97,187.93,26.0]
[1755752485331,3.71668642,187.95,187.9,5.30865619]
[1755752485511,4.40668642,187.94,187.88,3.71668642]
[1755752485710,0.69,187.93,187.9,26.0]
[1755752486098,0.69,187.93,187.89,0.28432314]
[1755752486305,0.69,187.93,187.9,26.0]
[1755752486508,4.40668642,187.93,187.88,3.71668642]
[1755752486713,0.69,187.92,187.88,26.0]
[1755752486919,0.69,187.92,187.88,29.71668642]
[1755752488316,4.40668642,187.92,187.88,26.0]
[1755752488636,0.69,187.91,187.88,26.0]
[1755752488802,0.69,187.91,187.85,9.375]
[1755752489006,0.69,187.91,187.87,3.71668642]
[1755752489222,0.69,187.9,187.88,3.71668642]
[1755752489423,3.71668642,187.94,187.89,3.71668642]
[1755752489729,0.69,187.93,187.89,3.71668642]
[1755752489907,13.59559401,187.97,187.91,3.71668642]
[1755752490106,0.69,187.93,187.91,3.71668642]
[1755752491532,0.69,187.92,187.89,3.71668642]
[1755752491726,3.71668642,187.95,187.89,3.71668642]
[1755752491923,0.69,187.94,187.9,3.71668642]
[1755752492113,0.69,187.94,187.91,3.71668642]
[1755752493440,0.69,187.94,187.92,3.71668642]
[1755752493934,0.69,187.93,187.91,3.71668642]
[1755752494231,0.69,187.92,187.91,3.71668642]
[1755752494832,0.69,187.92,187.88,26.03]
[1755752495021,0.69,187.92,187.91,3.71668642]
[1755752495651,3.71668642,187.96,187.91,3.71668642]
[1755752495850,0.69,187.94,187.91,3.71668642]
[1755752496323,0.69,187.93,187.91,3.71668642]
[1755752497350,0.69,187.93,187.88,0.03]
[1755752497351,3.71668642,187.92,187.88,0.03]
[1755752497518,0.69,187.93,187.88,0.03]
[1755752497519,3.71668642,187.91,187.88,0.03]
[1755752497726,4.40668642,187.91,187.88,0.03]
[1755752497941,0.69,187.9,187.88,0.03]
[1755752498931,17.31228043,187.89,187.88,0.03]
[1755752499541,18.00228043,187.89,187.88,0.03]
[1755752500548,14.28559401,187.89,187.88,0.03]
[1755752500848,18.00228043,187.89,187.88,0.03]
[1755752502260,4.40668642,187.89,187.88,0.03]
[1755752514050,18.00228043,187.89,187.88,0.03]
[1755752519367,55.90228043,187.89,187.88,0.03]
[1755752520381,55.21228043,187.89,187.88,0.03]
[1755752520574,17.31228043,187.89,187.88,0.03]
[1755752520778,55.21228043,187.89,187.88,0.03]
[1755752523079,55.17228043,187.89,187.88,0.03]
[1755752523261,55.84228043,187.89,187.88,0.03]
[1755752525486,17.98228043,187.89,187.88,0.03]
[1755752525674,55.82228043,187.89,187.88,0.03]
[1755752528881,82.10660357,187.89,187.88,0.03]
[1755752532971,85.6783084,187.89,187.88,0.03]
[1755752533290,39.59559401,187.87,187.86,0.03]
[1755752533495,81.11228043,187.87,187.86,0.03]
[1755752533790,81.78228043,187.87,187.86,0.03]
[1755752533966,58.56128338,187.87,187.86,0.03]
[1755752535582,62.13139494,187.87,187.86,0.03]
[1755752535773,55.1289201,187.87,187.86,0.03]
[1755752535977,58.84560652,187.87,187.86,0.03]
[1755752536868,62.41604812,187.87,187.86,0.03]
[1755752537474,62.41609438,187.87,187.86,0.03]
[1755752539889,87.46177124,187.87,187.86,0.03]
[1755752540193,83.89128338,187.87,187.86,0.03]
[1755752542319,88.13323347,187.87,187.86,0.03]
[1755752542485,88.41755661,187.87,187.86,0.03]
[1755752542988,62.41755661,187.87,187.86,0.03]
[1755752547819,62.41755661,187.87,187.75,0.67]
[1755752547820,13.59559401,187.78,187.75,0.67]
[1755752548021,17.31228043,187.76,187.75,0.67]
[1755752548324,51.33559401,187.76,187.72,3.71668642]
[1755752548786,51.33559401,187.76,187.73,0.67]
[1755752549303,51.33559401,187.76,187.73,4.38668642]
[1755752549492,51.33559401,187.76,187.73,3.71668642]
[1755752549687,51.33559401,187.76,187.74,0.67]
[1755752550512,0.28432314,187.82,187.74,0.67]
[1755752550724,13.59559401,187.78,187.74,0.67]
[1755752550903,37.72,187.77,187.74,0.67]
[1755752551423,37.72,187.77,187.75,0.67]
[1755752551721,51.31559401,187.77,187.76,0.67]
[1755752553312,13.59559401,187.76,187.73,0.67]
[1755752553507,37.7,187.75,187.74,0.67]
[1755752553721,51.29559401,187.75,187.74,0.67]
[1755752553894,13.59559401,187.74,187.72,0.67]
[1755752554226,13.59559401,187.74,187.71,3.74668642]
[1755752554227,37.72,187.73,187.71,3.74668642]
[1755752554728,37.72,187.73,187.72,0.67]
[1755752556253,37.72,187.73,187.71,0.7]
[1755752556440,37.72,187.73,187.71,0.03]
[1755752556643,37.72,187.73,187.72,0.67]
[1755752558815,51.31559401,187.73,187.71,0.03]
[1755752559432,4.43668642,187.72,187.71,0.03]
[1755752559633,55.03228043,187.73,187.71,0.03]
[1755752560248,17.31228043,187.72,187.71,0.03]
[1755752560424,13.59559401,187.72,187.71,0.03]
[1755752561052,3.71668642,187.74,187.71,0.03]
[1755752561234,37.68,187.73,187.71,0.03]
[1755752562234,42.11668642,187.73,187.71,0.03]
[1755752562448,18.03228043,187.72,187.71,0.03]
[1755752563227,18.31660357,187.72,187.71,0.03]
[1755752563848,18.03228043,187.72,187.71,0.03]
[1755752568955,18.31660357,187.72,187.71,0.03]
[1755752572670,13.59559401,187.7,187.63,0.67]
[1755752572870,13.59559401,187.66,187.63,0.67]
[1755752573053,37.62,187.65,187.64,0.67]
[1755752574565,41.33668642,187.65,187.58,5.36307174]
[1755752574764,41.33668642,187.65,187.57,31.65932936]
[1755752574765,41.33668642,187.65,187.61,0.67]
[1755752574957,41.33668642,187.65,187.62,0.67]
[1755752575671,3.71668642,187.64,187.62,0.67]
[1755752575869,37.64,187.63,187.62,0.67]
[1755752577178,37.64,187.63,187.56,26.0]
[1755752577471,37.64,187.63,187.62,0.03]
[1755752578267,41.35668642,187.63,187.62,0.03]
[1755752578596,37.64,187.63,187.62,0.03]
[1755752578887,54.95228043,187.63,187.62,0.03]
[1755752579966,51.23559401,187.63,187.62,0.7]
[1755752580494,54.95228043,187.63,187.62,0.03]
[1755752581070,37.64,187.63,187.62,0.7]
[1755752581283,37.6,187.63,187.62,0.7]
[1755752581999,13.59559401,187.66,187.62,0.7]
[1755752582302,37.6,187.65,187.62,4.41668642]
[1755752582486,37.6,187.65,187.62,0.03]
[1755752582671,37.6,187.65,187.63,0.67]
[1755752582991,13.59559401,187.67,187.64,0.67]
[1755752583213,0.7,187.68,187.63,0.67]
[1755752583380,51.89559401,187.67,187.63,4.38668642]
[1755752583698,51.19559401,187.67,187.64,0.67]
[1755752583997,37.6,187.67,187.65,0.67]
[1755752584177,37.6,187.67,187.63,3.71668642]
[1755752584178,37.6,187.67,187.64,0.67]
[1755752584494,38.3,187.67,187.63,3.71668642]
[1755752584697,42.01668642,187.67,187.63,0.67]
[1755752585278,37.6,187.67,187.64,0.67]
[1755752585477,37.6,187.67,187.64,4.38668642]
[1755752585893,37.6,187.67,187.64,0.67]
[1755752586602,37.6,187.67,187.64,4.38668642]
[1755752586995,37.6,187.67,187.66,3.71668642]
[1755752587800,37.6,187.67,187.64,0.67]
[1755752588002,37.6,187.67,187.66,3.71668642]
[1755752588501,37.6,187.67,187.66,4.38668642]
[1755752588814,4.6575,187.71,187.66,4.38668642]
[1755752588971,4.6575,187.71,187.65,3.71668642]
[1755752588972,42.2775,187.71,187.7,3.71668642]
[1755752589303,42.2775,187.71,187.7,4.38668642]
[1755752589682,42.2775,187.71,187.7,30.38668642]
[1755752589683,4.6575,187.71,187.7,30.38668642]
[1755752591504,4.6575,187.71,187.7,30.67100956]
[1755752592208,37.64,187.77,187.71,0.28432314]
[1755752592390,37.64,187.78,187.74,3.71668642]
[1755752592711,37.64,187.78,187.76,3.71668642]
[1755752593200,37.64,187.78,187.77,3.71668642]
[1755752593407,38.34,187.78,187.76,3.71668642]
[1755752593610,0.7,187.77,187.67,26.0]
[1755752593781,0.7,187.77,187.68,26.0]
[1755752593782,13.59559401,187.76,187.68,26.0]
[1755752593980,13.59559401,187.76,187.67,26.0]
[1755752593981,13.59559401,187.74,187.7,3.71668642]
[1755752594194,0.7,187.73,187.7,3.71668642]
[1755752594402,37.68,187.72,187.7,3.71668642]
[1755752594779,0.7,187.71,187.7,3.71668642]
[1755752595412,0.7,187.71,187.67,0.67]
[1755752595618,0.7,187.71,187.69,3.71668642]
[1755752596920,0.7,187.7,187.67,3.71668642]
[1755752597216,37.66,187.69,187.68,3.71668642]
[1755752597886,14.29559401,187.74,187.68,4.38668642]
[1755752598082,37.66,187.73,187.71,3.71668642]
[1755752598807,38.36,187.73,187.71,3.71668642]
[1755752599508,37.66,187.73,187.72,3.71668642]
[1755752600293,37.66,187.73,187.7,0.67]
[1755752600501,38.36,187.73,187.72,3.71668642]
[1755752600687,37.66,187.73,187.72,3.71668642]
[1755752603308,0.06,187.75,187.72,4.43668642]
[1755752603507,0.06,187.75,187.74,3.71668642]
[1755752604934,0.78,187.75,187.74,3.71668642]
[1755752605125,0.78,187.75,187.73,3.71668642]
[1755752605327,0.72,187.74,187.73,3.71668642]
[1755752605520,0.06,187.75,187.73,3.71668642]
[1755752605723,0.06,187.75,187.71,26.0]
[1755752605724,0.06,187.75,187.74,3.71668642]
[1755752606433,0.78,187.75,187.74,3.71668642]
[1755752606825,0.06,187.75,187.74,3.71668642]
[1755752609839,0.78,187.75,187.72,3.71668642]
[1755752610312,0.06,187.75,187.72,3.71668642]
[1755752610625,0.72,187.74,187.72,3.71668642]
[1755752612730,0.72,187.74,187.73,3.71668642]
[1755752612917,0.72,187.74,187.69,0.75]
[1755752612918,0.72,187.74,187.72,3.71668642]
[1755752613244,0.72,187.73,187.72,3.71668642]
[1755752614119,0.06,187.75,187.72,3.71668642]
[1755752614317,0.72,187.74,187.72,3.71668642]
[1755752614940,0.06,187.75,187.73,3.71668642]
[1755752615127,0.06,187.75,187.69,0.03]
[1755752615323,0.72,187.74,187.72,3.71668642]
[1755752615738,0.06,187.75,187.73,3.71668642]
[1755752616051,0.78,187.75,187.73,3.71668642]
[1755752616363,0.72,187.74,187.73,3.71668642]
[1755752617025,0.72,187.74,187.7,0.72]
[1755752617226,0.72,187.74,187.73,3.71668642]
[1755752617534,0.72,187.74,187.71,3.71668642]
[1755752618729,0.06,187.75,187.71,3.71668642]
[1755752619050,0.78,187.75,187.71,3.71668642]
[1755752619254,0.72,187.74,187.71,3.71668642]
[1755752619563,0.06,187.75,187.71,4.43668642]
[1755752619942,0.78,187.75,187.71,4.43668642]
[1755752621352,0.06,187.75,187.74,29.71668642]
[1755752621681,0.06,187.75,187.74,30.43668642]
[1755752621830,0.06,187.75,187.74,4.43668642]
[1755752622667,0.06,187.75,187.74,3.71668642]
[1755752624071,0.06,187.75,187.74,4.43668642]
[1755752624252,0.06,187.75,187.74,3.71668642]
[1755752624451,0.78,187.75,187.73,3.71668642]
[1755752624661,0.06,187.75,187.73,3.71668642]
[1755752624865,0.78,187.75,187.71,26.72]
[1755752625176,0.78,187.75,187.73,3.71668642]
[1755752625877,0.78,187.75,187.71,30.43668642]
[1755752626376,4.43668642,187.74,187.69,3.74668642]
[1755752626583,3.71668642,187.74,187.69,0.03]
[1755752626876,0.72,187.73,187.69,3.74668642]
[1755752627175,0.78,187.75,187.7,4.43668642]
[1755752627481,0.72,187.74,187.7,4.43668642]
[1755752627777,0.72,187.74,187.7,3.71668642]
[1755752628678,0.72,187.73,187.68,25.77918642]
[1755752628977,0.72,187.73,187.7,3.71668642]
[1755752631758,17.31228043,187.71,187.67,0.03]
[1755752632008,4.43668642,187.7,187.67,0.03]
[1755752632306,41.31668642,187.72,187.67,3.74668642]
[1755752632511,0.72,187.71,187.67,3.74668642]
[1755752632654,0.72,187.7,187.67,3.74668642]
[1755752633573,3.71668642,187.72,187.67,3.74668642]
[1755752633768,0.65,187.7,187.67,3.74668642]
[1755752634173,37.66,187.71,187.67,0.03]
[1755752634365,0.65,187.7,187.67,0.03]
[1755752634785,38.31,187.7,187.67,0.03]
[1755752635394,0.65,187.69,187.67,0.03]
[1755752637462,37.64,187.7,187.67,0.03]
[1755752637870,38.29,187.7,187.67,0.03]
[1755752638082,0.65,187.69,187.67,0.03]
[1755752639289,38.29,187.7,187.67,0.03]
[1755752639489,37.64,187.7,187.68,3.71668642]
[1755752639674,37.64,187.7,187.69,3.71668642]
[1755752640074,37.64,187.7,187.68,3.71668642]
[1755752640393,37.64,187.7,187.67,0.03]
[1755752640394,38.29,187.7,187.67,3.74668642]
[1755752641493,38.29,187.7,187.67,0.03]
[1755752641798,17.31228043,187.68,187.67,0.03]
[1755752642407,17.96228043,187.68,187.67,0.03]
[1755752647365,20.74303439,187.68,187.67,0.03]
[1755752650480,2.78075396,187.68,187.67,0.03]
[1755752650693,41.96668642,187.68,187.67,0.03]
[1755752650899,38.25,187.68,187.67,0.03]
[1755752653987,37.6,187.68,187.67,0.03]
[1755752654291,38.25,187.68,187.67,0.03]
[1755752655925,55.56228043,187.68,187.67,0.03]
[1755752661592,55.58228043,187.68,187.67,0.03]
[1755752663004,55.64228043,187.68,187.67,0.03]
[1755752663170,13.59559401,187.67,187.65,0.03]
[1755752663369,41.39668642,187.66,187.65,0.03]
[1755752663571,55.71228043,187.66,187.65,0.03]
[1755752666516,55.99660357,187.66,187.65,0.03]
[1755752666693,59.71328999,187.66,187.65,0.03]
[1755752667792,55.99660357,187.66,187.65,0.03]
[1755752671309,58.77794249,187.66,187.65,0.03]
[1755752673524,21.09794249,187.66,187.65,0.03]
[1755752673833,58.71794249,187.66,187.65,0.03]
[1755752674629,62.43462891,187.66,187.65,0.03]
[1755752674928,58.71794249,187.66,187.65,0.03]